[Event "Early-Titled-Tuesday-Blitz-April-16-2024"]
[Site "Chess.com"]
[Date "2024.04.16"]
[Round "4"]
[White "Navyblue1"]
[Black "ChessSwole"]
[Result "0-1"]
[WhiteElo "2272"]
[BlackElo "2688"]
[TimeControl "180+1"]
[EndTime "8:39:25 PDT"]
[Termination "ChessSwole won on time"]

1. d4 {[%clk 0:03:00.9]} 1... d5 {[%clk 0:02:59.1]} 2. c4 {[%clk 0:03:01.1]}
2... e6 {[%clk 0:02:59.3]} 3. Nc3 {[%clk 0:02:59.3]} 3... Nf6 {[%clk 0:02:58.7]}
4. cxd5 {[%clk 0:02:52]} 4... Nxd5 {[%clk 0:02:59.6]} 5. e4 {[%clk 0:02:51.1]}
5... Nxc3 {[%clk 0:02:59.8]} 6. bxc3 {[%clk 0:02:52]} 6... c5 {[%clk 0:03:00.2]}
7. Nf3 {[%clk 0:02:51.4]} 7... cxd4 {[%clk 0:03:00.4]} 8. cxd4 {[%clk
0:02:51.2]} 8... Bb4+ {[%clk 0:03:00.8]} 9. Bd2 {[%clk 0:02:49.2]} 9... Bxd2+
{[%clk 0:03:01.4]} 10. Qxd2 {[%clk 0:02:48.3]} 10... O-O {[%clk 0:03:02.3]} 11.
Bc4 {[%clk 0:02:48]} 11... b6 {[%clk 0:03:01.6]} 12. O-O {[%clk 0:02:47.3]}
12... Bb7 {[%clk 0:03:01.7]} 13. Rfe1 {[%clk 0:02:45.4]} 13... Nd7 {[%clk
0:03:01.7]} 14. Rad1 {[%clk 0:02:38.9]} 14... Rc8 {[%clk 0:03:01.6]} 15. Bb3
{[%clk 0:02:36.8]} 15... Re8 {[%clk 0:03:01.7]} 16. h3 {[%clk 0:02:30.4]} 16...
h6 {[%clk 0:03:00.3]} 17. Qf4 {[%clk 0:02:04.5]} 17... Qf6 {[%clk 0:02:48]} 18.
Qg4 {[%clk 0:01:29.9]} 18... Rc3 {[%clk 0:02:37.9]} 19. d5 {[%clk 0:01:19.6]}
19... Nc5 {[%clk 0:02:25]} 20. e5 {[%clk 0:01:10.1]} 20... Qe7 {[%clk 0:01:36]}
21. d6 {[%clk 0:00:41.1]} 21... Qd7 {[%clk 0:01:16.5]} 22. Nd4 {[%clk
0:00:36.7]} 22... a5 {[%clk 0:00:50]} 23. Rc1 {[%clk 0:00:33.7]} 23... Rxc1
{[%clk 0:00:45.9]} 24. Rxc1 {[%clk 0:00:32.8]} 24... a4 {[%clk 0:00:44.7]} 25.
Bc4 {[%clk 0:00:29.4]} 25... Bc6 {[%clk 0:00:30.2]} 26. Nxc6 {[%clk 0:00:22.2]}
26... Qxc6 {[%clk 0:00:31.1]} 27. Be2 {[%clk 0:00:20.6]} 27... Qd5 {[%clk
0:00:28.6]} 28. Qf4 {[%clk 0:00:09.8]} 28... Qxa2 {[%clk 0:00:23.1]} 29. Bb5
{[%clk 0:00:09.4]} 29... Rd8 {[%clk 0:00:22.5]} 30. Rc3 {[%clk 0:00:03.6]} 30...
Qa1+ {[%clk 0:00:20.1]} 31. Rc1 {[%clk 0:00:02.2]} 31... Qb2 {[%clk 0:00:20.5]}
0-1

[Event "Early-Titled-Tuesday-Blitz-April-16-2024"]
[Site "Chess.com"]
[Date "2024.04.16"]
[Round "4"]
[White "Aradhya2000"]
[Black "maximnovik"]
[Result "1-0"]
[WhiteElo "2765"]
[BlackElo "2559"]
[TimeControl "180+1"]
[EndTime "8:39:27 PDT"]
[Termination "Aradhya2000 won on time"]

1. d4 {[%clk 0:03:00.9]} 1... Nf6 {[%clk 0:02:59.1]} 2. c4 {[%clk 0:03:01.5]}
2... g6 {[%clk 0:02:59.6]} 3. g3 {[%clk 0:03:00.9]} 3... d5 {[%clk 0:02:56.6]}
4. cxd5 {[%clk 0:03:00.1]} 4... Nxd5 {[%clk 0:02:56.3]} 5. Bg2 {[%clk
0:03:00.3]} 5... Bg7 {[%clk 0:02:56]} 6. e4 {[%clk 0:03:00.5]} 6... Nb4 {[%clk
0:02:53.3]} 7. d5 {[%clk 0:02:57.6]} 7... c6 {[%clk 0:02:43]} 8. Ne2 {[%clk
0:02:57.5]} 8... cxd5 {[%clk 0:02:32.4]} 9. exd5 {[%clk 0:02:57.5]} 9... Bf5
{[%clk 0:02:12]} 10. O-O {[%clk 0:02:19.8]} 10... O-O {[%clk 0:02:05.3]} 11. Na3
{[%clk 0:02:16]} 11... Nd3 {[%clk 0:01:54.7]} 12. Nc3 {[%clk 0:02:10.7]} 12...
Na6 {[%clk 0:01:45.9]} 13. g4 {[%clk 0:02:10.9]} 13... Bxg4 {[%clk 0:01:02.3]}
14. Qxg4 {[%clk 0:01:59.3]} 14... Rc8 {[%clk 0:00:57]} 15. Qe2 {[%clk
0:01:52.8]} 15... Nab4 {[%clk 0:00:50.3]} 16. Nc2 {[%clk 0:01:52.3]} 16... Nxc1
{[%clk 0:00:36.3]} 17. Raxc1 {[%clk 0:01:50]} 17... Bxc3 {[%clk 0:00:34.8]} 18.
bxc3 {[%clk 0:01:49.6]} 18... Nxa2 {[%clk 0:00:34.7]} 19. Rce1 {[%clk
0:01:49.2]} 19... Nxc3 {[%clk 0:00:28.6]} 20. Qxe7 {[%clk 0:01:48.8]} 20... Nxd5
{[%clk 0:00:19.3]} 21. Qxb7 {[%clk 0:01:45.2]} 21... Nf4 {[%clk 0:00:16.4]} 22.
Ne3 {[%clk 0:01:44.5]} 22... Qg5 {[%clk 0:00:15.3]} 23. Kh1 {[%clk 0:01:37.1]}
23... a5 {[%clk 0:00:13.7]} 24. Rb1 {[%clk 0:01:16.6]} 24... Rc3 {[%clk
0:00:12.1]} 25. Rb5 {[%clk 0:01:12.7]} 25... Rc5 {[%clk 0:00:10.5]} 26. Rxc5
{[%clk 0:01:11.9]} 26... Qxc5 {[%clk 0:00:10.4]} 27. Qe4 {[%clk 0:01:10.3]}
27... Qg5 {[%clk 0:00:08.8]} 28. h3 {[%clk 0:01:01.4]} 28... Rd8 {[%clk
0:00:07.5]} 29. Ng4 {[%clk 0:00:36]} 29... h5 {[%clk 0:00:04.1]} 30. Qe5 {[%clk
0:00:35.6]} 30... Qxe5 {[%clk 0:00:01.8]} 31. Nxe5 {[%clk 0:00:35.9]} 31... Nxg2
{[%clk 0:00:01.2]} 32. Kxg2 {[%clk 0:00:35.5]} 32... a4 {[%clk 0:00:01.5]} 33.
Ra1 {[%clk 0:00:34.6]} 1-0

[Event "Early-Titled-Tuesday-Blitz-April-16-2024"]
[Site "Chess.com"]
[Date "2024.04.16"]
[Round "4"]
[White "albi1999"]
[Black "Viktoker"]
[Result "1-0"]
[WhiteElo "2648"]
[BlackElo "2449"]
[TimeControl "180+1"]
[EndTime "8:39:27 PDT"]
[Termination "albi1999 won by resignation"]

1. d4 {[%clk 0:02:57.6]} 1... f5 {[%clk 0:02:57.4]} 2. h4 {[%clk 0:02:52.1]}
2... Nf6 {[%clk 0:02:54.8]} 3. h5 {[%clk 0:02:51.9]} 3... e6 {[%clk 0:02:54.5]}
4. Nc3 {[%clk 0:02:49.3]} 4... Bb4 {[%clk 0:02:46.4]} 5. e3 {[%clk 0:02:41.4]}
5... d5 {[%clk 0:02:45.5]} 6. Ne2 {[%clk 0:02:41]} 6... c5 {[%clk 0:02:40.9]} 7.
a3 {[%clk 0:02:41]} 7... Ba5 {[%clk 0:02:40.3]} 8. dxc5 {[%clk 0:02:40.7]} 8...
Nc6 {[%clk 0:02:33.8]} 9. b4 {[%clk 0:02:39.8]} 9... Bc7 {[%clk 0:02:33.7]} 10.
Bb2 {[%clk 0:02:39.4]} 10... a6 {[%clk 0:02:16.8]} 11. Nf4 {[%clk 0:02:25.6]}
11... Qe7 {[%clk 0:02:13]} 12. Na4 {[%clk 0:02:05.3]} 12... e5 {[%clk 0:02:01]}
13. Nxd5 {[%clk 0:02:00.5]} 13... Nxd5 {[%clk 0:02:01.9]} 14. Qxd5 {[%clk
0:02:00.8]} 14... Be6 {[%clk 0:02:02.6]} 15. Qf3 {[%clk 0:02:00.9]} 15... Rd8
{[%clk 0:01:55.9]} 16. Be2 {[%clk 0:01:44]} 16... O-O {[%clk 0:01:53.8]} 17. Qh3
{[%clk 0:01:28.6]} 17... Qd7 {[%clk 0:01:07.1]} 18. Rd1 {[%clk 0:01:26.3]} 18...
Qf7 {[%clk 0:01:00.1]} 19. O-O {[%clk 0:01:23.3]} 19... e4 {[%clk 0:00:52.9]}
20. Qh4 {[%clk 0:01:17.2]} 20... Ne5 {[%clk 0:00:45.1]} 21. Nb6 {[%clk
0:01:14.2]} 21... Nc6 {[%clk 0:00:09.9]} 22. Bc3 {[%clk 0:00:53.3]} 22... f4
{[%clk 0:00:09.6]} 23. Bg4 {[%clk 0:00:40.8]} 23... Rxd1 {[%clk 0:00:09]} 24.
Rxd1 {[%clk 0:00:37.2]} 24... fxe3 {[%clk 0:00:08.8]} 25. fxe3 {[%clk 0:00:37]}
25... Bxg4 {[%clk 0:00:09]} 26. Qxg4 {[%clk 0:00:36.8]} 26... Qf2+ {[%clk
0:00:09.6]} 27. Kh1 {[%clk 0:00:33]} 27... Ne5 {[%clk 0:00:09.7]} 28. Qe6+
{[%clk 0:00:26.6]} 28... Kh8 {[%clk 0:00:08.5]} 29. Bxe5 {[%clk 0:00:20.6]}
29... Qh4+ {[%clk 0:00:08.2]} 30. Qh3 {[%clk 0:00:21.2]} 30... Qxh3+ {[%clk
0:00:08.2]} 31. gxh3 {[%clk 0:00:22.1]} 31... Bxe5 {[%clk 0:00:08.3]} 32. Nd7
{[%clk 0:00:14]} 1-0

[Event "Early-Titled-Tuesday-Blitz-April-16-2024"]
[Site "Chess.com"]
[Date "2024.04.16"]
[Round "4"]
[White "NusratAlo"]
[Black "Tsyhanchuk_Stanislav"]
[Result "1-0"]
[WhiteElo "1906"]
[BlackElo "2420"]
[TimeControl "180+1"]
[EndTime "8:39:27 PDT"]
[Termination "NusratAlo won on time"]

1. e4 {[%clk 0:03:00.9]} 1... e5 {[%clk 0:03:00.1]} 2. Nf3 {[%clk 0:03:01]} 2...
Nc6 {[%clk 0:03:00.7]} 3. Bc4 {[%clk 0:03:01.5]} 3... Nf6 {[%clk 0:03:00.4]} 4.
d3 {[%clk 0:03:01]} 4... Bc5 {[%clk 0:02:59.4]} 5. O-O {[%clk 0:02:55.2]} 5...
d6 {[%clk 0:02:59.8]} 6. Be3 {[%clk 0:02:54.9]} 6... Bg4 {[%clk 0:02:58.4]} 7.
Nbd2 {[%clk 0:02:51.5]} 7... h6 {[%clk 0:02:56.3]} 8. c3 {[%clk 0:02:50.3]} 8...
g5 {[%clk 0:02:41.9]} 9. Qb3 {[%clk 0:02:22.7]} 9... Na5 {[%clk 0:02:10.8]} 10.
Qa4+ {[%clk 0:02:16.9]} 10... c6 {[%clk 0:02:09.5]} 11. Bxc5 {[%clk 0:01:56.5]}
11... dxc5 {[%clk 0:02:10.4]} 12. Qc2 {[%clk 0:01:36.1]} 12... Nxc4 {[%clk
0:02:05.1]} 13. dxc4 {[%clk 0:01:37]} 13... Qe7 {[%clk 0:01:59.9]} 14. Rad1
{[%clk 0:01:33.6]} 14... O-O-O {[%clk 0:01:58.1]} 15. Rfe1 {[%clk 0:01:28.5]}
15... Bh5 {[%clk 0:01:57.4]} 16. Kh1 {[%clk 0:01:16.4]} 16... g4 {[%clk
0:01:54.3]} 17. Nh4 {[%clk 0:01:14.4]} 17... Nxe4 {[%clk 0:01:32.8]} 18. Qxe4
{[%clk 0:01:11]} 18... Qxh4 {[%clk 0:01:32]} 19. g3 {[%clk 0:01:05.2]} 19... Qg5
{[%clk 0:01:15.2]} 20. Qxe5 {[%clk 0:01:03.3]} 20... Bg6 {[%clk 0:00:48.8]} 21.
Qxg5 {[%clk 0:00:44]} 21... hxg5 {[%clk 0:00:49.7]} 22. Nb3 {[%clk 0:00:43.3]}
22... Rxd1 {[%clk 0:00:46.9]} 23. Rxd1 {[%clk 0:00:41.8]} 23... Bc2 {[%clk
0:00:46.8]} 24. Re1 {[%clk 0:00:37.9]} 24... Bxb3 {[%clk 0:00:46.9]} 25. axb3
{[%clk 0:00:38.7]} 25... Kd7 {[%clk 0:00:46.9]} 26. Re5 {[%clk 0:00:37.6]} 26...
f6 {[%clk 0:00:30]} 27. Rxc5 {[%clk 0:00:37.4]} 27... Kd6 {[%clk 0:00:30.8]} 28.
Rf5 {[%clk 0:00:37.5]} 28... Ke6 {[%clk 0:00:29.5]} 29. Ra5 {[%clk 0:00:37.2]}
29... a6 {[%clk 0:00:28.4]} 30. Ra1 {[%clk 0:00:36.2]} 30... Rd8 {[%clk
0:00:27.7]} 31. Re1+ {[%clk 0:00:33.7]} 31... Kf5 {[%clk 0:00:21]} 32. Re2
{[%clk 0:00:33.6]} 32... b5 {[%clk 0:00:01.5]} 33. cxb5 {[%clk 0:00:32.4]} 33...
cxb5 {[%clk 0:00:01.5]} 34. Kg2 {[%clk 0:00:32.8]} 1-0

[Event "Early-Titled-Tuesday-Blitz-April-16-2024"]
[Site "Chess.com"]
[Date "2024.04.16"]
[Round "4"]
[White "HansOnTwitch"]
[Black "platy3"]
[Result "1-0"]
[WhiteElo "3149"]
[BlackElo "2909"]
[TimeControl "180+1"]
[EndTime "8:39:29 PDT"]
[Termination "HansOnTwitch won by resignation"]

1. e4 {[%clk 0:01:46.6]} 1... c5 {[%clk 0:02:58.3]} 2. Nf3 {[%clk 0:01:45.9]}
2... e6 {[%clk 0:02:58.4]} 3. d4 {[%clk 0:01:42.9]} 3... cxd4 {[%clk 0:02:59.3]}
4. Nxd4 {[%clk 0:01:43.6]} 4... Nc6 {[%clk 0:02:59.7]} 5. Bf4 {[%clk 0:01:44.2]}
5... d6 {[%clk 0:02:53]} 6. Nxc6 {[%clk 0:01:39.3]} 6... bxc6 {[%clk 0:02:53]}
7. c4 {[%clk 0:01:40.1]} 7... Rb8 {[%clk 0:02:49.9]} 8. Qc2 {[%clk 0:01:39]}
8... Nf6 {[%clk 0:02:45]} 9. Nc3 {[%clk 0:01:38.3]} 9... e5 {[%clk 0:02:43.8]}
10. Be3 {[%clk 0:01:37.7]} 10... Qa5 {[%clk 0:02:43.3]} 11. Bd2 {[%clk 0:01:33]}
11... Qb6 {[%clk 0:02:33.8]} 12. b3 {[%clk 0:01:31.3]} 12... Be7 {[%clk
0:02:33.6]} 13. Be2 {[%clk 0:01:31.2]} 13... O-O {[%clk 0:02:32.2]} 14. O-O
{[%clk 0:01:30]} 14... a5 {[%clk 0:02:31.2]} 15. Be3 {[%clk 0:01:30.2]} 15...
Qc7 {[%clk 0:02:31]} 16. h3 {[%clk 0:01:30.2]} 16... Be6 {[%clk 0:02:31.2]} 17.
Rac1 {[%clk 0:01:29.7]} 17... Rfc8 {[%clk 0:02:28.6]} 18. Rfd1 {[%clk
0:01:26.6]} 18... g6 {[%clk 0:02:25.4]} 19. Na4 {[%clk 0:01:26.6]} 19... Nd7
{[%clk 0:02:21.2]} 20. Qd2 {[%clk 0:01:20.4]} 20... Nc5 {[%clk 0:02:18.3]} 21.
Nxc5 {[%clk 0:01:14]} 21... dxc5 {[%clk 0:02:19.2]} 22. Bg4 {[%clk 0:01:14.2]}
22... Rd8 {[%clk 0:02:18]} 23. Qc3 {[%clk 0:01:12.8]} 23... Bxg4 {[%clk
0:02:10.4]} 24. hxg4 {[%clk 0:01:13.7]} 24... f6 {[%clk 0:02:11]} 25. g3 {[%clk
0:00:43.5]} 25... a4 {[%clk 0:02:10.5]} 26. bxa4 {[%clk 0:00:40.8]} 26... Ra8
{[%clk 0:02:10.5]} 27. Rxd8+ {[%clk 0:00:40]} 27... Qxd8 {[%clk 0:02:10.1]} 28.
Qb3 {[%clk 0:00:35.1]} 28... Rb8 {[%clk 0:02:00]} 29. Qc2 {[%clk 0:00:35]} 29...
Qb6 {[%clk 0:01:48.8]} 30. Rd1 {[%clk 0:00:28.3]} 30... Qb2 {[%clk 0:01:49]} 31.
Qd3 {[%clk 0:00:19.4]} 31... Rd8 {[%clk 0:01:40.6]} 32. Qb3 {[%clk 0:00:17.3]}
32... Rb8 {[%clk 0:01:21.6]} 33. Qxb2 {[%clk 0:00:17.4]} 33... Rxb2 {[%clk
0:01:22.5]} 34. a3 {[%clk 0:00:15.7]} 34... Rb3 {[%clk 0:01:14.8]} 35. Rd7
{[%clk 0:00:08]} 35... Kf8 {[%clk 0:01:13.8]} 36. Kg2 {[%clk 0:00:06.8]} 36...
Ke8 {[%clk 0:00:49.4]} 37. Ra7 {[%clk 0:00:03.8]} 37... Rc3 {[%clk 0:00:45.6]}
38. a5 {[%clk 0:00:03.7]} 38... Rxc4 {[%clk 0:00:46.1]} 39. a6 {[%clk
0:00:02.8]} 39... Ra4 {[%clk 0:00:46.6]} 40. Kf1 {[%clk 0:00:02.2]} 40... Rxa3
{[%clk 0:00:44.5]} 41. Rxe7+ {[%clk 0:00:01.6]} 41... Kd8 {[%clk 0:00:43.8]} 42.
Bxc5 {[%clk 0:00:02.5]} 42... Rxa6 {[%clk 0:00:43]} 43. Rxh7 {[%clk 0:00:02.4]}
43... Ra1+ {[%clk 0:00:42.7]} 44. Kg2 {[%clk 0:00:02.9]} 44... Rc1 {[%clk
0:00:43.6]} 45. Be7+ {[%clk 0:00:03.4]} 45... Ke8 {[%clk 0:00:43.8]} 46. Bxf6
{[%clk 0:00:04.3]} 1-0

[Event "Early-Titled-Tuesday-Blitz-April-16-2024"]
[Site "Chess.com"]
[Date "2024.04.16"]
[Round "4"]
[White "Ati1517"]
[Black "Rawnsdale"]
[Result "1/2-1/2"]
[WhiteElo "2227"]
[BlackElo "2499"]
[TimeControl "180+1"]
[EndTime "8:39:29 PDT"]
[Termination "Game drawn by repetition"]

1. e4 {[%clk 0:03:00.9]} 1... c6 {[%clk 0:03:00.1]} 2. d4 {[%clk 0:02:59.2]}
2... d5 {[%clk 0:03:00.4]} 3. Nc3 {[%clk 0:02:58.7]} 3... dxe4 {[%clk
0:03:00.5]} 4. Nxe4 {[%clk 0:02:59.6]} 4... Nf6 {[%clk 0:03:01.2]} 5. Nxf6+
{[%clk 0:02:59.5]} 5... exf6 {[%clk 0:03:02.1]} 6. Bc4 {[%clk 0:02:58.3]} 6...
Bd6 {[%clk 0:03:01.1]} 7. Qe2+ {[%clk 0:02:58.3]} 7... Be7 {[%clk 0:02:56.3]} 8.
Nf3 {[%clk 0:02:56.8]} 8... O-O {[%clk 0:02:55.7]} 9. Be3 {[%clk 0:02:56.7]}
9... Bg4 {[%clk 0:02:53.1]} 10. h3 {[%clk 0:02:56.1]} 10... Bxf3 {[%clk
0:02:41.8]} 11. gxf3 {[%clk 0:02:53.5]} 11... Qa5+ {[%clk 0:02:35.1]} 12. Bd2
{[%clk 0:02:18.2]} 12... Bb4 {[%clk 0:02:33.4]} 13. c3 {[%clk 0:02:14.6]} 13...
Bd6 {[%clk 0:02:28.8]} 14. O-O-O {[%clk 0:02:04]} 14... b5 {[%clk 0:02:24.9]}
15. Bb3 {[%clk 0:02:01.1]} 15... Nd7 {[%clk 0:02:14.5]} 16. Rhg1 {[%clk
0:01:53.8]} 16... Rae8 {[%clk 0:02:14]} 17. Qd3 {[%clk 0:01:52.9]} 17... Qc7
{[%clk 0:02:11.2]} 18. Bh6 {[%clk 0:01:46.1]} 18... Bf4+ {[%clk 0:02:10.8]} 19.
Bxf4 {[%clk 0:01:45.1]} 19... Qxf4+ {[%clk 0:02:11.5]} 20. Kb1 {[%clk
0:01:43.5]} 20... c5 {[%clk 0:02:08]} 21. Bc2 {[%clk 0:01:36.3]} 21... g6 {[%clk
0:02:03.1]} 22. dxc5 {[%clk 0:01:35.8]} 22... Nxc5 {[%clk 0:02:01.6]} 23. Qd5
{[%clk 0:01:36.1]} 23... Ne6 {[%clk 0:01:52.3]} 24. Rd3 {[%clk 0:01:04.5]} 24...
Rd8 {[%clk 0:01:50.2]} 25. Qxb5 {[%clk 0:00:47.8]} 25... Rb8 {[%clk 0:01:47.4]}
26. Qd5 {[%clk 0:00:47.6]} 26... Rfd8 {[%clk 0:01:45.1]} 27. Qe4 {[%clk
0:00:45.7]} 27... Qh2 {[%clk 0:01:22.3]} 28. Rgd1 {[%clk 0:00:31.9]} 28... Rxd3
{[%clk 0:01:18.2]} 29. Rxd3 {[%clk 0:00:31.7]} 29... Qxf2 {[%clk 0:01:15.3]} 30.
Qe3 {[%clk 0:00:26.1]} 30... Qf1+ {[%clk 0:01:04.8]} 31. Rd1 {[%clk 0:00:24.3]}
31... Qxh3 {[%clk 0:01:04.3]} 32. Qxa7 {[%clk 0:00:23.4]} 32... Rf8 {[%clk
0:00:56.5]} 33. Qe3 {[%clk 0:00:18.8]} 33... Qh5 {[%clk 0:00:49.1]} 34. Bb3
{[%clk 0:00:16.8]} 34... Nc5 {[%clk 0:00:47.4]} 35. Rd5 {[%clk 0:00:14]} 35...
Qh1+ {[%clk 0:00:47]} 36. Rd1 {[%clk 0:00:13.7]} 36... Qh5 {[%clk 0:00:37]} 37.
Rd5 {[%clk 0:00:12.4]} 37... Qh1+ {[%clk 0:00:18.4]} 38. Rd1 {[%clk 0:00:12.4]}
38... Qh5 {[%clk 0:00:18.2]} 1/2-1/2

[Event "Early-Titled-Tuesday-Blitz-April-16-2024"]
[Site "Chess.com"]
[Date "2024.04.16"]
[Round "4"]
[White "Agibileg"]
[Black "stolencandy13"]
[Result "1-0"]
[WhiteElo "2761"]
[BlackElo "2554"]
[TimeControl "180+1"]
[EndTime "8:39:30 PDT"]
[Termination "Agibileg won by resignation"]

1. d4 {[%clk 0:02:59.1]} 1... Nf6 {[%clk 0:02:59.6]} 2. c4 {[%clk 0:02:58.5]}
2... c5 {[%clk 0:03:00]} 3. d5 {[%clk 0:02:58.4]} 3... e6 {[%clk 0:03:00.8]} 4.
Nc3 {[%clk 0:02:57]} 4... exd5 {[%clk 0:03:01.7]} 5. cxd5 {[%clk 0:02:57.4]}
5... d6 {[%clk 0:03:02.3]} 6. e4 {[%clk 0:02:55.9]} 6... g6 {[%clk 0:03:01.9]}
7. Bd3 {[%clk 0:02:54.9]} 7... a6 {[%clk 0:03:02.1]} 8. a4 {[%clk 0:02:54.4]}
8... Bg7 {[%clk 0:03:01.9]} 9. h3 {[%clk 0:02:54.6]} 9... Nbd7 {[%clk
0:03:01.9]} 10. Nf3 {[%clk 0:02:54.3]} 10... Nh5 {[%clk 0:03:02.6]} 11. Bg5
{[%clk 0:02:50.9]} 11... Bf6 {[%clk 0:03:02]} 12. Be3 {[%clk 0:02:50.7]} 12...
Ne5 {[%clk 0:02:55.2]} 13. Be2 {[%clk 0:02:50.4]} 13... Nxf3+ {[%clk 0:02:33]}
14. Bxf3 {[%clk 0:02:49.8]} 14... Ng7 {[%clk 0:02:33.7]} 15. Bf4 {[%clk
0:02:46.9]} 15... O-O {[%clk 0:02:25.6]} 16. O-O {[%clk 0:02:46.3]} 16... Qe7
{[%clk 0:02:22.5]} 17. Re1 {[%clk 0:02:44.2]} 17... Be5 {[%clk 0:02:18.9]} 18.
Bxe5 {[%clk 0:02:37.6]} 18... Qxe5 {[%clk 0:02:18]} 19. a5 {[%clk 0:02:37.5]}
19... Bd7 {[%clk 0:02:15.5]} 20. Bg4 {[%clk 0:02:35.3]} 20... Bxg4 {[%clk
0:02:12.5]} 21. hxg4 {[%clk 0:02:36]} 21... Rae8 {[%clk 0:02:06.8]} 22. Na4
{[%clk 0:02:21.3]} 22... h5 {[%clk 0:01:57.6]} 23. Rb1 {[%clk 0:02:14.6]} 23...
Qg5 {[%clk 0:01:49.8]} 24. gxh5 {[%clk 0:02:09.3]} 24... Nxh5 {[%clk 0:01:50.7]}
25. Nb6 {[%clk 0:02:07]} 25... Kg7 {[%clk 0:01:27.1]} 26. Qf3 {[%clk 0:02:05.5]}
26... Rh8 {[%clk 0:01:23.8]} 27. g3 {[%clk 0:02:03.5]} 27... Nf6 {[%clk
0:01:05.7]} 28. Kg2 {[%clk 0:02:03.1]} 28... Ng4 {[%clk 0:01:00.8]} 29. Rh1
{[%clk 0:02:00.4]} 29... Ne5 {[%clk 0:01:00.7]} 30. Qc3 {[%clk 0:01:58.9]} 30...
Qf6 {[%clk 0:00:39.2]} 31. f4 {[%clk 0:01:41.1]} 31... Ng4 {[%clk 0:00:38.6]}
32. Kf3 {[%clk 0:01:38.1]} 32... Nh2+ {[%clk 0:00:33]} 33. Kg2 {[%clk
0:01:35.3]} 33... Ng4 {[%clk 0:00:31.5]} 34. Rxh8 {[%clk 0:01:30.3]} 34... Rxh8
{[%clk 0:00:30.2]} 35. Qxf6+ {[%clk 0:01:29.2]} 35... Nxf6 {[%clk 0:00:27.5]}
36. e5 {[%clk 0:01:27.7]} 36... dxe5 {[%clk 0:00:15.4]} 37. fxe5 {[%clk
0:01:28.2]} 37... Ng4 {[%clk 0:00:15.9]} 38. Re1 {[%clk 0:01:23.3]} 38... f5
{[%clk 0:00:15.1]} 39. d6 {[%clk 0:01:10.1]} 39... Rh2+ {[%clk 0:00:14.1]} 40.
Kg1 {[%clk 0:01:10.1]} 40... Rd2 {[%clk 0:00:13]} 41. d7 {[%clk 0:01:08.4]}
41... Kf7 {[%clk 0:00:12.4]} 42. e6+ {[%clk 0:01:08.2]} 42... Ke7 {[%clk
0:00:12.3]} 43. Nc8+ {[%clk 0:01:08]} 43... Kf6 {[%clk 0:00:07.2]} 44. e7 {[%clk
0:01:07.8]} 44... Ne5 {[%clk 0:00:03.7]} 45. Rxe5 {[%clk 0:01:06.3]} 45... Kxe5
{[%clk 0:00:03.3]} 46. e8=Q+ {[%clk 0:01:06.2]} 46... Kd4 {[%clk 0:00:03.7]} 47.
d8=Q+ {[%clk 0:01:05.6]} 1-0

[Event "Early-Titled-Tuesday-Blitz-April-16-2024"]
[Site "Chess.com"]
[Date "2024.04.16"]
[Round "4"]
[White "JonasEilenberg"]
[Black "Roosters19"]
[Result "1-0"]
[WhiteElo "2625"]
[BlackElo "2321"]
[TimeControl "180+1"]
[EndTime "8:39:30 PDT"]
[Termination "JonasEilenberg won by resignation"]

1. d4 {[%clk 0:03:00.9]} 1... Nf6 {[%clk 0:02:59.5]} 2. c4 {[%clk 0:03:01.3]}
2... c5 {[%clk 0:02:56.3]} 3. d5 {[%clk 0:03:01.3]} 3... b5 {[%clk 0:02:54.8]}
4. Qc2 {[%clk 0:03:01.2]} 4... bxc4 {[%clk 0:02:44.2]} 5. e4 {[%clk 0:03:01.1]}
5... e6 {[%clk 0:02:40]} 6. Bxc4 {[%clk 0:02:58.9]} 6... exd5 {[%clk 0:02:36.5]}
7. exd5 {[%clk 0:02:59.8]} 7... d6 {[%clk 0:02:33.4]} 8. Nc3 {[%clk 0:02:59.8]}
8... Nbd7 {[%clk 0:02:28.9]} 9. Nf3 {[%clk 0:02:49.8]} 9... Be7 {[%clk 0:02:14]}
10. O-O {[%clk 0:02:49.9]} 10... Nb6 {[%clk 0:02:08.8]} 11. b3 {[%clk
0:02:47.2]} 11... O-O {[%clk 0:02:03.6]} 12. Bb2 {[%clk 0:02:40.4]} 12... Nxc4
{[%clk 0:01:58.3]} 13. bxc4 {[%clk 0:02:41.3]} 13... Rb8 {[%clk 0:01:52.3]} 14.
Rab1 {[%clk 0:02:26.8]} 14... Bg4 {[%clk 0:01:50.4]} 15. Qd3 {[%clk 0:02:17.2]}
15... Qd7 {[%clk 0:01:45.5]} 16. Nh4 {[%clk 0:01:58.9]} 16... Rfe8 {[%clk
0:01:36.6]} 17. h3 {[%clk 0:01:47]} 17... Bh5 {[%clk 0:01:35.7]} 18. Rfe1 {[%clk
0:01:47.2]} 18... Bf8 {[%clk 0:01:26.4]} 19. Rxe8 {[%clk 0:01:41.4]} 19... Rxe8
{[%clk 0:01:27.3]} 20. g4 {[%clk 0:01:36.3]} 20... Bg6 {[%clk 0:01:25.6]} 21.
Nxg6 {[%clk 0:01:36.3]} 21... hxg6 {[%clk 0:01:23.1]} 22. Ne2 {[%clk 0:01:24.2]}
22... Nh7 {[%clk 0:01:14.6]} 23. Ng3 {[%clk 0:01:23.2]} 23... Be7 {[%clk
0:01:01.2]} 24. Kg2 {[%clk 0:01:17.3]} 24... Rb8 {[%clk 0:00:51.1]} 25. Bc3
{[%clk 0:01:14.8]} 25... Rxb1 {[%clk 0:00:46.8]} 26. Qxb1 {[%clk 0:01:15.7]}
26... Qc7 {[%clk 0:00:26.4]} 27. Qb5 {[%clk 0:01:10.7]} 27... Bf8 {[%clk
0:00:23.1]} 28. Ne4 {[%clk 0:01:09.3]} 28... f5 {[%clk 0:00:18.7]} 29. Ng3
{[%clk 0:01:05.9]} 29... Qf7 {[%clk 0:00:14.2]} 30. gxf5 {[%clk 0:00:40.1]}
30... gxf5 {[%clk 0:00:14.1]} 31. f4 {[%clk 0:00:41]} 31... g5 {[%clk
0:00:13.2]} 32. Qb1 {[%clk 0:00:33.6]} 32... gxf4 {[%clk 0:00:07.5]} 33. Nxf5
{[%clk 0:00:34]} 33... Ng5 {[%clk 0:00:06.7]} 34. h4 {[%clk 0:00:28.5]} 34...
f3+ {[%clk 0:00:07]} 35. Kh2 {[%clk 0:00:23.3]} 35... Nh7 {[%clk 0:00:07.1]} 36.
Qg1+ {[%clk 0:00:23]} 36... Bg7 {[%clk 0:00:06.4]} 37. Nh6+ {[%clk 0:00:23.3]}
37... Kf8 {[%clk 0:00:06.1]} 38. Nxf7 {[%clk 0:00:23.8]} 1-0